Cogmind - Beta 15 @@@ ROGUE MODE // 2025.08.27 @ 12:51:20 Player: Anting Result: Destroyed by G-47 Trooper with Particle Gun Performance ------------- Evolutions (0) 0 Regions Visited (3) 600 Robots Destroyed (32) 160 Value Destroyed (918) 918 Prototype IDs (11) 220 Alien Tech Used (0) 0 Bonus (0) 0 TOTAL SCORE: 1898 Bonus ------- None Cogmind --------- Core Integrity 0/250 Matter 237/300 Energy 99/100 System Corruption 0% Temperature Cool (90) Movement Treading (240) Ox1 Location -7/Recycling Parts ------- > --- POWER (1) -------- (None) > --- PROPULSION (2) --- Light Treads > --- UTILITY (2) ------ Small Storage Unit Makeshift Light Armor Plating > --- WEAPON (2) ------- Subdweller Beam Cannon Subdweller Machine Gun > --- INVENTORY (8) ---- Seismic Detector Powered Cannon Grenade Launcher Grenade Launcher Makeshift Spear Peak State ------------ > --- POWER ------------ (None) > --- PROPULSION ------- Light Treads Light Treads > --- UTILITY ---------- Small Storage Unit Makeshift Light Armor Plating > --- WEAPON ----------- Subdweller Machine Gun Makeshift Spear > --- INVENTORY -------- Light Treads Seismic Detector Subdweller Beam Cannon Subdweller Beam Cannon Powered Cannon Grenade Launcher Grenade Launcher [Rating: 15] Favorites ----------- Power Subdweller Power Source Engine Subdweller Power Source Power Core Light Nuclear Core Propulsion Light Treads Treads Light Treads Leg Aluminum Leg Utility Small Storage Unit Device Seismic Detector Storage Small Storage Unit Protection Makeshift Light Armor Plating Weapon Subdweller Machine Gun Energy Gun Small Laser Energy Cannon Subdweller Beam Cannon Ballistic Gun Subdweller Machine Gun Launcher Grenade Launcher Piercing Weapon Makeshift Spear Build | -11 -10 -10 -7 ------- Run | Yrd Mat Sub Rec Slots Evolved . | . . . . Power . | . . . . Propulsion . | . . . . Utility . | . . . . Weapon . | . . . . Parts Attached 28 | 7 6 15 . Power 4 | 1 1 2 . Engine 3 | 1 . 2 . Core 1 | . 1 . . Reactor . | . . . . Propulsion 10 | 2 3 5 . Treads 7 | . 2 5 . Leg 3 | 2 1 . . Wheel . | . . . . Hover . | . . . . Flight . | . . . . Utility 3 | 2 . 1 . Device 1 | 1 . . . Storage 1 | 1 . . . Processor . | . . . . Hackware . | . . . . Protection 1 | . . 1 . Artifact . | . . . . Weapon 11 | 2 2 7 . Energy Gun 2 | . 1 1 . Energy Cannon 2 | . . 2 . Ballistic Gun 4 | 2 1 1 . Ballistic Cannon . | . . . . Launcher 2 | . . 2 . Special Weapon . | . . . . Impact Weapon . | . . . . Slashing Weapon . | . . . . Piercing Weapon 1 | . . 1 . Special Melee Weapon . | . . . . Unidentified Prototypes . | . . . . Parts Lost 7 | . . 3 4 Power 2 | . . 1 1 Propulsion 2 | . . . 2 Utility . | . . . . Weapon 3 | . . 2 1 Highest Loss Streak 4 | . . 1 4 To Critical Strikes . | . . . . Average Backups 7 | 3 7 7 6 Power . | . . . . Propulsion 2 | 1 5 1 . Utility . | . . . 1 Weapon 4 | . 1 5 4 Tool/Special . | . . . . Unused Backups 6 | . 1 4 1 Power 2 | . 1 1 . Propulsion 1 | . . 1 . Utility 1 | . . 1 . Weapon 2 | . . 1 1 Tool/Special . | . . . . Average Slot Usage (%) 97 | . 100 97 95 Engine 8 | . 4 9 12 Core 3 | . 9 2 . Treads 26 | . 22 28 27 Leg 1 | . 5 . . Device 13 | . 14 13 11 Storage 14 | . 14 14 14 Energy Gun 6 | . 11 5 . Energy Cannon 5 | . . 6 13 Ballistic Gun 11 | . 16 9 14 Piercing Weapon 5 | . . 6 . Peak Build Rating 15 | 7 9 15 15 Average Rating 11 | 5 8 12 12 On Entrance 7 | . 7 9 12 Naked Turns . | . . . . Heaviest Build 26 | 15 15 23 26 Greatest Support 40 | 20 40 40 40 Greatest Overweight (x) 1 | 1 . . 1 Average Overweight (x) . | . . . . Largest Inventory Capacity 8 | 8 8 8 8 Average Capacity 7 | 7 8 8 8 Most Carried 8 | 4 8 8 8 Average Carried 7 | 3 7 7 7 Final Capacity 8 | 8 8 8 8 Final Carried 8 | 4 8 8 6 Class Distribution -------------------- 100% | Mutant Dominant Class ---------------- Mutant | -10/Materials Mutant | -10/Subcaves Mutant | -7/Recycling Resources | -11 -10 -10 -7 ----------- Run | Yrd Mat Sub Rec Matter Collected 925 | 281 250 394 . Remotely . | . . . . Salvage Created 1149 | 68 353 686 42 Parts 76 | 6 25 44 1 Haulers Intercepted . | . . . . Recyclers Shooed . | . . . . Parts Field Recycled . | . . . . Retrieved Matter . | . . . . Parts Self-Destructed 6 | . . 6 . Prevented . | . . . . Kills | -11 -10 -10 -7 ------- Run | Yrd Mat Sub Rec Combat Hostiles Destroyed 26 | . 11 14 1 Guns 16 | . 11 4 1 Cannons 9 | . . 9 . AOE 1 | . . 1 . Classes Destroyed 9 | 2 4 2 1 Worker 1 | . 1 . . Tunneler 1 | 1 . . . Recycler 1 | 1 . . . Operator 1 | . 1 . . Turret 2 | . . 2 . Swarmer 7 | . 6 1 . Grunt 5 | . 5 . . Hunter 1 | . . . 1 Subdweller 13 | . . 13 . Best Kill Streak 8 | 2 8 2 1 Combat Bots Only 7 | . 7 2 1 Max Kills in Single Turn 2 | 1 2 1 1 Gunslinging . | . . . . Exploded 1 | . . 1 . Melee . | . . . . Uniques/NPCs Destroyed . | . . . . Combat | -11 -10 -10 -7 -------- Run | Yrd Mat Sub Rec Hostile Shots Fired 184 | . 60 55 69 Missed 54 | . 17 15 22 Hits 130 | . 43 40 47 Projectile 130 | . 43 40 47 AOE 4 | . . 4 . Critical Strikes 1 | . . . 1 Damage Taken 1822 | . 439 947 436 Core 251 | . 39 126 86 Absorbed by Shields . | . . . . Core Remaining (%) 100 | 100 . . . Volleys Fired 91 | 6 32 46 7 Largest 2 | 2 2 2 2 Hottest 140 | 40 60 140 110 Shots Fired 165 | 12 64 78 11 Gun 128 | 12 64 45 7 Cannon 24 | . . 20 4 Launcher 13 | . . 13 . Special . | . . . . Kinetic 95 | 12 56 20 7 Thermal 57 | . 8 45 4 Explosive 13 | . . 13 . Electromagnetic . | . . . . Robot Hit Streak 18 | 3 9 18 6 Robot Miss Streak 5 | 2 5 2 1 Penetration Max . | . . . . Secondary Targets 1 | . 1 . . Max Gunslinging Chain 1 | . 1 . . Shots Hit Robots 115 | 7 38 62 8 Core Hits 64 | 2 20 39 3 Critical Kills . | . . . . Critical Parts Destroyed . | . . . . Critical Strikes 1 | . . 1 . Impale 1 | . . 1 . Melee Attacks 49 | . . 49 . Impact . | . . . . Slashing . | . . . . Piercing 49 | . . 49 . Sneak Attacks . | . . . . Combat Hostiles . | . . . . Follow-up Attacks . | . . . . Damage Inflicted 2289 | 88 475 1505 221 Guns 1112 | 88 475 437 112 Cannons 585 | . . 476 109 Explosions 78 | . . 78 . Melee 514 | . . 514 . Ramming . | . . . . Kinetic 790 | 88 422 168 112 Thermal 907 | . 53 745 109 Explosive 78 | . . 78 . Electromagnetic . | . . . . Impact . | . . . . Slashing . | . . . . Piercing 514 | . . 514 . Highest Corruption . | . . . . Average Corruption . | . . . . Corruption Purged . | . . . . Corruption Blocked . | . . . . Overload Shots . | . . . . Overflow Damage 4 | . . 4 . Projectiles . | . . . . Explosions . | . . . . Melee 4 | . . 4 . Knockbacks . | . . . . Impact . | . . . . Kinetic . | . . . . Secondary . | . . . . Self-Inflicted Damage . | . . . . Shots . | . . . . Rammed . | . . . . Targets Rammed . | . . . . Kicked . | . . . . Crushed . | . . . . Highest Temperature 309 | . 36 108 309 Average Temperature 68 | . 22 33 151 Received Heat Transfer 447 | . 156 174 117 Effects 2 | . . . 2 Interference 2 | . . . 2 Siege Activations . | . . . . Martial Activations . | . . . . Shielding Activations . | . . . . Robots Disrupted . | . . . . Combat Hostiles . | . . . . Robots Corrupted . | . . . . Combat Hostiles . | . . . . Parts Fried . | . . . . Impact Corruptions . | . . . . Robots Melted . | . . . . Combat Hostiles . | . . . . Parts Melted 5 | . . 5 . Heat Transferred 1323 | . 125 1104 94 Parts Sabotaged . | . . . . Parts Stolen . | . . . . Parts Stripped . | . . . . Power Chain Reactions . | . . . . Alert | -11 -10 -10 -7 ------- Run | Yrd Mat Sub Rec Maximum Alert Level 1 | . 1 . . Low Security (%) 95 | 100 94 . 100 Level 1 4 | . 5 . . Level 2 . | . . . . Level 3 . | . . . . Level 4 . | . . . . Level 5 . | . . . . High Security . | . . . . Max Security . | . . . . Peak Influence 220 | 10 220 . 82 Initial 76 | . . . 76 Average 74 | 1 82 . 63 Influence Increases 743 | 10 337 330 66 Destroy 0b10 Robot/C 300 | . 220 60 20 Destroy 0b10 Robot/NC 20 | 10 10 . . Destroy Leader 40 | . 40 . . Successful Hack 36 | . 20 . 16 Select Force Hacks 30 | . . . 30 Destroy Structure 2 | . 2 . . Lose Combat Pursuer 315 | . 45 270 . Influence Decreases 701 | 10 337 170 184 Entered New Map 84 | . . . 84 Time Decay 577 | 10 337 170 60 Lost Part 40 | . . . 40 Squads Dispatched 1 | . 1 . . Investigation 1 | . 1 . . Extermination . | . . . . Reinforcement . | . . . . Assault . | . . . . Garrison . | . . . . Intercept . | . . . . Searches Triggered . | . . . . Construction Impeded . | . . . . Haulers Reinforced . | . . . . Active Scanning Responses . | . . . . Cargo Convoy Interrupts . | . . . . Stealth | -11 -10 -10 -7 --------- Run | Yrd Mat Sub Rec Distress Signals 2 | . 2 . . Communications Jammed . | . . . . Distress Signals . | . . . . Times Spotted 41 | . 19 18 4 Peak Tracking Total 9 | . 9 3 4 Tactical Retreats 7 | . 3 4 . Traps | -11 -10 -10 -7 ------- Run | Yrd Mat Sub Rec Traps Triggered 3 | . 1 2 . Indirectly . | . . . . Trap Hack Attempts . | . . . . Triggered . | . . . . Disarmed . | . . . . Reprogrammed . | . . . . Reused . | . . . . Traps Extracted . | . . . . Installed . | . . . . Triggered . | . . . . Machines | -11 -10 -10 -7 ---------- Run | Yrd Mat Sub Rec Machines Disabled 2 | . . 2 . Max in Single Turn 1 | . . 1 . Machines Repaired . | . . . . Machines Dismantled . | . . . . Machines Sabotaged . | . . . . Overloaded Fab Kills . | . . . . Hacking | -11 -10 -10 -7 --------- Run | Yrd Mat Sub Rec Machines Accessed 7 | . 2 2 3 Terminals 4 | . 2 . 2 Fabricators . | . . . . Repair Stations . | . . . . Recycling Units 1 | . . . 1 Scanalyzers . | . . . . Garrison Access . | . . . . Total Hacks 23 | . 10 6 7 Successful 13 | . 5 6 2 Failed 10 | . 5 . 5 Catastrophic . | . . . . Database Lockouts . | . . . . Manual 10 | . 7 . 3 Terminals 14 | . 10 . 4 Fabricators . | . . . . Repair Stations . | . . . . Recycling Units 3 | . . . 3 Scanalyzers . | . . . . Garrison Access . | . . . . Terminal Hacks 9 | . 2 6 1 Record 5 | . . 5 . Part Schematic 1 | . . . 1 Locate Traps 1 | . 1 . . Zone Layout 1 | . 1 . . Proto ID Catalog 1 | . . 1 . Fabricator Hacks . | . . . . Repair Station Hacks . | . . . . Recycling Unit Hacks . | . . . . Scanalyzer . | . . . . Garrison Access Hacks . | . . . . Unauthorized Hacks 4 | . 3 . 1 Terminals 3 | . 3 . . Operators 1 | . 1 . . Skim 2 | . 2 . . Fabricators . | . . . . Repair Stations . | . . . . Recycling Units 1 | . . . 1 Tunnel 1 | . . . 1 Scanalyzers . | . . . . Garrison Access . | . . . . Data Cores Recovered 1 | . 1 . . Used . | . . . . Hacking Detections 5 | . 2 . 3 Full Trace Events 1 | . . . 1 Feedback Events . | . . . . Feedback Blocked . | . . . . Robot Schematics Acquired . | . . . . Robots Built . | . . . . Authchips . | . . . . Time . | . . . . Total Robot Build Rating . | . . . . Part Schematics Acquired 1 | . . . 1 Parts Built . | . . . . Authchips . | . . . . Time . | . . . . Total Part Build Rating . | . . . . Parts Repaired . | . . . . Time . | . . . . Parts Recycled . | . . . . Recycled Matter . | . . . . Retrieved Matter . | . . . . Retrieved Components . | . . . . Parts Scanalyzed . | . . . . Part Schematics Acquired . | . . . . Parts Damaged . | . . . . Bothacking | -11 -10 -10 -7 ------------ Run | Yrd Mat Sub Rec Used RIF Installer . | . . . . Robots Hacked . | . . . . Non-combat . | . . . . Combat . | . . . . Robot Hacks Applied . | . . . . Relay Couplers Released . | . . . . Fabnet Peak Effective % . | . . . . Robots Rewired . | . . . . Allies Hacked . | . . . . Hacks Repelled . | . . . . Allies | -11 -10 -10 -7 -------- Run | Yrd Mat Sub Rec Total Allies . | . . . . Largest Group . | . . . . Highest-Rated Group . | . . . . Highest-Rated Ally . | . . . . Total Orders . | . . . . Ally Attacks . | . . . . Total Damage . | . . . . Kills . | . . . . Allies Corrupted . | . . . . Allies Melted . | . . . . Intel | -11 -10 -10 -7 ------- Run | Yrd Mat Sub Rec Active Infowar (turns) 5778 | 14 1082 4587 95 Seismic 5778 | 14 1082 4587 95 Robot Analysis Total . | . . . . Derelict Logs Recovered 2 | . . 2 . Drone Launches . | . . . . Drone Recoveries . | . . . . Exploration | -11 -10 -10 -7 ------------- Run | Yrd Mat Sub Rec Turns Passed 5923 | 94 1082 4618 129 Spaces Moved 3092 | 59 286 2682 65 Core 13 | 13 . . . Treads 2936 | . 189 2682 65 Legs 143 | 46 97 . . Wheels . | . . . . Hover . | . . . . Flight . | . . . . Fastest Speed 50 | 50 120 160 160 Average Speed 157 | 105 146 160 161 Slowest Speed 240 | 120 160 160 240 Overloaded Moves . | . . . . Propulsion Burnouts . | . . . . Robots Hopped . | . . . . Potential Cave-ins . | . . . . Cave-ins Triggered . | . . . . Exploration Rate (%) 42 | 4 55 97 15 Regions Visited 3 Branch Regions 2 Pre-discovered Areas 4 | . . 3 1 Known Exits Taken . | . . . . Unknown Exits Taken 3 | 1 1 1 . Scrap Searched 5 | . . 5 . Spaces Dug 5 | . . 5 . Terrain Destroyed 36 | . . 36 . Melee 5 | . . 5 . Projectile . | . . . . AOE 31 | . . 31 . Terrain Rammed . | . . . . Walls Destroyed . | . . . . Machines Disabled . | . . . . Actions | -11 -10 -10 -7 --------- Run | Yrd Mat Sub Rec Total 3916 | 75 888 2875 78 Wait 598 | . 547 48 3 Move 3089 | 58 285 2681 65 Hop . | . . . . Pick Up 24 | 4 9 11 . Fast Attach 10 | 7 1 2 . Attach 6 | . 2 2 2 Detach . | . . . . Swap 28 | . 4 23 1 Drop 21 | . 8 13 . Fire 91 | 6 32 46 7 Melee 49 | . . 49 . Ram . | . . . . Kick . | . . . . Crush . | . . . . Escape Stasis . | . . . . Rewire . | . . . . Trap . | . . . . Miscellaneous . | . . . . Route ------- -11/Scrapyard -10/Materials (discovered 3 exits: [*Mat x2] / *Sub) -10/Subcaves (discovered 3 exits: [*Mat x2] / *Rec) -7/Recycling History --------- Turn | Location | Event 5 | -11/Scrapyard | Discovered new exit (range 14) 95 | -11/Scrapyard | Entered Materials 218 | -10/Materials | Destroyed 7 combat bots 330 | -10/Materials | Build established: Mutant 407 | -10/Materials | Discovered new exit (range 4) 560 | -10/Materials | Discovered new exit (range 9) 1151 | -10/Materials | Discovered new exit (range 8) 1177 | -10/Materials | Entered Subcaves 1217 | -10/Subcaves | Shifting Twisted Machinery released Mak. Spear 1325 | -10/Subcaves | Shifting Twisted Machinery released Sub. Beam Cannon 1441 | -10/Subcaves | Visited Clippyterm 1446 | -10/Subcaves | Learned Factory trap positions 1446 | -10/Subcaves | Learned Research machine intel 1734 | -10/Subcaves | Discovered new exit (range 12) 1751 | -10/Subcaves | Ambushed by Subdwellers from Twisted Machinery 1958 | -10/Subcaves | Visited 4L-MR0's lab 1983 | -10/Subcaves | Found Powered Cannon 2055 | -10/Subcaves | Shifting Twisted Machinery released Sub. Optics 2056 | -10/Subcaves | Shifting Twisted Machinery released Mak. System Restoration Module 2295 | -10/Subcaves | Discovered new exit (range 9) 2420 | -10/Subcaves | Discovered new exit (range 14) 3834 | -10/Subcaves | Core integrity fell below 50% 5006 | -10/Subcaves | Learned location of Zion (-6) 5006 | -10/Subcaves | Met a Zionite searching for "candidates" 5072 | -10/Subcaves | Learned location of Storage (-7) 5097 | -10/Subcaves | Disturbed a concealed Subdweller 5795 | -10/Subcaves | Entered Recycling 5901 | -7/Recycling | Core integrity fell below 20% 5924 | -7/Recycling | Destroyed by G-47 Trooper with Particle Gun Last Messages --------------- 05894_ I-36 Angel springs to life. 05897_ Slug penetrates Wall. 05898_ Critical hit (Burn: +37). 05900_ Slug penetrates Wall. 05902_ Sub. Power Source destroyed. 05903_ Overheating: System interference. 05903_ Sub. Machine Gun temporarily disabled. 05903_ Slug penetrates Wall. 05904_ Lgt. Treads destroyed. 05909_ Sub. Beam Cannon destroyed. 05910_ Penetrated by Slug. 05910_ Lgt. Treads destroyed. 05919_ Penetrated by Slug. 05919_ Sub. Beam Cannon shoots sparks and powers down. 05922_ Slug penetrates Recycling Unit. 05922_ Med. Reactive Plating tumbles out of recycling unit. 05924_ H-55 Commando destroyed. Map ----- +----------------------------------------------------+ | ???????????????????????????????????????????? | | ???????????????????????????????????????????? | | ???????????????????????????????????????????? | | ???????????????????????????????????????????? | | ???????????????????????????????????????????? | | ???????????????????????????????????????????? | | ???????????????????????????????????????????? | | ?????????????????????#########?????????????? | | ??????????????????? ! !#?????????????? | | ??????????????????? #?????????????? | | ???????????????????? [ #?????????????? | | ???????????????????? [ #?????????????? | | ????????????????????? ! #?????????????? | | ????????????????????? #?????????????? | | ?????????????????????? ] ??????????????? | | ?????????????????????? ??????????????? | | ??????????????????????? ???????????????? | | ??????????????????????? ???????????????? | | ???????????????????????? ????????????????? | | ???????????????????????? Y ????????????????? | | ????????????????????????#/#????????????????? | | ????????????????????????#g###??????????????? | | ????????????????????????#%""#??????????????? | | ????????????????????????#! "#??????????????? | | ???????????????????###### !"#??????????????? | | ???????????????????# @###??????????????? | | ???????????????????# #????????????????? | | ???????????????????# #????????????????? | | ???????????????????# #????????????????? | | ???????????????????# #??##????????????? | | ???????????????????# ###### #????????????? | | ???????????????????## #?# #????????????? | | ????????????????????# #?# #????????????? | | ????????????????????# ### #????????????? | | ????????????????????# + #????????????? | | ????????????????????# # #????????????? | | ?????##############?# # #????????????? | | ?????# #?# + #????????????? | | ?????# #?# #### #????????????? | | ?????# ### #### #???????????? | | ?????# # ## ##???????????? | | ?????# # ## #????????????? | | ?????# """ + #? #????????????? | | ?????# "" """"" # #? #????????????? | | ?????# "" """"" # #?#####????????????? | | ?????# "T """"" ## ##??????????????????? | | ?????# "" """ ## #???????????????????? | | ?????# "" ## #???????????????????? | | ?????# ## #???????????????????? | | ?????#####" "####### #???????????????????? | +----------------------------------------------------+ Best States ------------- Heat Dissipation 25 Energy Generation 15 Energy Capacity 250 Matter Stores 300 Matter Capacity 300 Sight Range 16 Terrain Scan Density 10 Armor Coverage 100 Evasion (%) 55 Recoil Reduction 2 Item Schematics ----------------- Hvy. Missile Launcher | -7/Recycling | Hacked Robot Schematics ------------------ None Fabricated ------------ Nothing Repaired ---------- Nothing Alien Tech Used ----------------- None Achievements -------------- None Challenges ------------ None Game ------ Seed PhysicsNovaMeganuke Manual? 0 Play Time 00:24:05 Cumulative 292.4 hours Start 2025.08.27 @ 12:26:41 End 2025.08.27 @ 12:51:20 Sessions 1 Manual Loads 0 Difficulty Rogue Special Mode None Game No. 211 Rogue 211 Adventurer 0 Explorer 0 Win Type - Total 17 Types 8/0/5/1/1/0/0/1/0/1 Lore% 79 Gallery% 76 Achievement% 76 Wizard Run 0 Options --------- Layout 1 ASCII 0 Keyboard 0 Movement Mouse Keybinds 0 Fullscreen 2 Font 24/Smallcaps Map View 50x35 Zoom Use 0% Tactical HUD 1 Map Filters NONE Filters NONE Steam 1 RUN: 0e154dd0-a5ab-4460-9dad-28e572bc3671